fUST/lending_fUST_20250426
["ID","MTS","AMOUNT","RATE_DAILY","PERIOD"]
[359047920,1745674239547,-269.3,0.00016986,2]
[359047922,1745674239556,-434.72,0.00016986,2]
[359047924,1745674239566,-920.46,0.00016986,2]
[359047926,1745674239575,-200.0,0.00016986,2]
[359047928,1745674239584,-200.0,0.00016986,2]
[359047930,1745674239595,-541.82,0.00016986,2]
[359047932,1745674239604,-200.0,0.00016986,2]
[359047934,1745674239614,-400.0,0.00016986,2]
[359047936,1745674239624,-332.16,0.00016986,2]
[359047938,1745674239633,-400.0,0.00016986,2]
[359047940,1745674239643,-400.0,0.00016986,2]
[359047942,1745674239652,-400.0,0.00016986,2]
[359047944,1745674239661,-583.81,0.00016986,2]
[359047946,1745674239671,-200.0,0.00016986,2]
[359047948,1745674239681,-1197.28,0.00016986,2]
[359047950,1745674239691,-400.0,0.00016986,2]
[359047952,1745674239700,-200.98068,0.00016986,2]
[359047954,1745674239709,-200.0,0.00016986,2]
[359047956,1745674239718,-400.0,0.00016986,2]
[359047958,1745674239728,-400.0,0.00016986,2]
[359047959,1745674239737,-400.0,0.00016986,2]
[359047961,1745674239746,-1809.27,0.00016986,2]
[359047980,1745674239918,-531.38,0.00016986,2]
[359047982,1745674239929,-156.338475,0.00016986,2]
[359047984,1745674239939,-264.62,0.00016986,2]
[359047986,1745674239948,-400.0,0.00016986,2]
[359047988,1745674239958,-400.0,0.00016986,2]
[359047990,1745674239967,-200.0,0.00016986,2]
[359047992,1745674239977,-1075.54,0.00016986,2]
[359047994,1745674239987,-400.0,0.00016986,2]
[359047996,1745674239996,-400.0,0.00016986,2]
[359047998,1745674240007,-200.0,0.00016986,2]
[359048000,1745674240016,-3157.18,0.00016986,2]
[359048002,1745674240026,-1317.23,0.00016986,2]
[359048004,1745674240035,-679.31,0.00016986,2]
[359048006,1745674240047,-200.0,0.00016986,2]
[359048008,1745674240056,-400.0,0.00016986,2]
[359048010,1745674240066,-688.96,0.00016986,2]
[359048012,1745674240076,-400.0,0.00016986,2]
[359048014,1745674240087,-400.0,0.00016986,2]
[359048016,1745674240098,-400.0,0.00016986,2]
[359048018,1745674240107,-400.0,0.00016986,2]
[359048020,1745674240117,-200.0,0.00016986,2]
[359048022,1745674240127,-400.0,0.00016986,2]
[359048024,1745674240136,-400.0,0.00016986,2]
[359048026,1745674240145,-548.8,0.00016986,2]
[359048028,1745674240155,-776.0,0.00016986,2]
[359048030,1745674240164,-212.13,0.00016986,2]
[359048032,1745674240173,-200.0,0.00016986,2]
[359048034,1745674240183,-200.0,0.00016986,2]
[359048036,1745674240192,-1985.01,0.00016986,2]
[359048038,1745674240201,-400.0,0.00016986,2]
[359048040,1745674240211,-200.0,0.00016986,2]
[359048042,1745674240221,-400.0,0.00016986,2]
[359048044,1745674240230,-400.0,0.00016986,2]
[359048046,1745674240239,-400.0,0.00016986,2]
[359048048,1745674240248,-200.0,0.00016986,2]
[359048050,1745674240258,-151.0,0.00016986,2]
[359048052,1745674240268,-200.0,0.00016986,2]
[359048054,1745674240277,-400.0,0.00016986,2]
[359048056,1745674240287,-400.0,0.00016986,2]
[359048057,1745674240296,-400.0,0.00016986,2]
[359048060,1745674240305,-1182.7,0.00016986,2]
[359048062,1745674240315,-200.0,0.00016986,2]
[359048064,1745674240325,-400.0,0.00016986,2]
[359048066,1745674240334,-853.150764,0.00016986,2]
[359048067,1745674240343,-400.0,0.00016986,2]
[359048069,1745674240353,-1368.46,0.00016986,2]
[359048071,1745674240362,-398.74,0.00016986,2]
[359048073,1745674240372,-853.150764,0.00016986,2]
[359048075,1745674240382,-151.0,0.00016986,2]
[359048077,1745674240392,-200.0,0.00016986,2]
[359048079,1745674240402,-1073.9,0.00016986,2]
[359048081,1745674240411,-400.0,0.00016986,2]
[359048083,1745674240421,-200.0,0.00016986,2]
[359048085,1745674240432,-400.0,0.00016986,2]
[359048087,1745674240441,-1307.71,0.00016986,2]
[359048089,1745674240451,-209.38929486,0.00016986,2]
[359048091,1745674240460,-361.66,0.00016986,2]
[359048093,1745674240470,-400.0,0.00016986,2]
[359048095,1745674240480,-400.0,0.00016986,2]
[359048097,1745674240490,-400.0,0.00016986,2]
[359048099,1745674240501,-813.68,0.00016986,2]
[359048101,1745674240510,-200.0,0.00016986,2]
[359048103,1745674240520,-330.04787997,0.00016986,2]
[359048105,1745674240530,-400.0,0.00016986,2]
[359048107,1745674240540,-232.72,0.00016986,2]
[359048109,1745674240550,-400.0,0.00016986,2]
[359048111,1745674240560,-200.0,0.00016986,2]
[359048113,1745674240570,-400.0,0.00016986,2]
[359048115,1745674240580,-400.0,0.00016986,2]
[359048117,1745674240590,-1227.33,0.00016986,2]
[359048119,1745674240600,-1251.93,0.00016986,2]
[359048121,1745674240611,-439.63,0.00016986,2]
[359048123,1745674240620,-200.0,0.00016986,2]
[359048125,1745674240630,-200.0,0.00016986,2]
[359048127,1745674240640,-400.0,0.00016986,2]
[359048129,1745674240650,-200.0,0.00016986,2]
[359048131,1745674240659,-400.0,0.00016986,2]
[359048133,1745674240670,-400.0,0.00016986,2]
[359048135,1745674240680,-977.84,0.00016986,2]
[359048137,1745674240690,-951.96,0.00016986,2]
[359048139,1745674240700,-412.22,0.00016986,2]
[359048141,1745674240710,-1289.96,0.00016986,2]
[359048143,1745674240720,-33470.0,0.00017,2]
[359048145,1745674240729,-186.956,0.00017,2]
[359048147,1745674240739,-151.0,0.00017,2]
[359048149,1745674240749,-241.10144,0.00017,2]
[359048151,1745674240759,-151.0,0.00017,2]
[359048153,1745674240768,-151.0,0.00017,2]
[359048155,1745674240778,-151.0,0.00017,2]
[359048157,1745674240788,-199.826802,0.00017,2]
[359048158,1745674240798,-151.0,0.00017,2]
[359048160,1745674240810,-151.0,0.00017,2]
[359048162,1745674240819,-151.0,0.00017,2]
[359048164,1745674240829,-168.988934,0.00017,2]
[359048166,1745674240838,-168.988934,0.00017,2]
[359048168,1745674240849,-2317.491421,0.00017,2]
[359048170,1745674240859,-2317.491421,0.00017,2]
[359048172,1745674240868,-8288.53669798,0.00017001,2]
[359048175,1745674240881,-500.0,0.00017075,2]
[359048177,1745674240891,-2903.9,0.00017132,2]
[359048179,1745674240900,-2903.9,0.00017132,2]
[359048181,1745674240910,-2903.9,0.00017132,2]
[359048183,1745674240919,-2903.9,0.00017132,2]
[359048185,1745674240929,-403.0,0.00017234,2]
[359048187,1745674240938,-531.88,0.0001726,2]
[359048189,1745674240947,-459.16,0.0001726,2]
[359048191,1745674240957,-400.0,0.0001726,2]
[359048193,1745674240966,-309.22945125,0.0001726,2]
[359048195,1745674240976,-400.0,0.0001726,2]
[359048197,1745674240985,-400.0,0.0001726,2]
[359048199,1745674240995,-151.0,0.0001726,2]
[359048201,1745674241004,-151.0,0.0001726,2]
[359048203,1745674241014,-400.0,0.0001726,2]
[359048205,1745674241024,-1067.65,0.0001726,2]
[359048206,1745674241034,-436.63,0.0001726,2]
[359048208,1745674241044,-303.2,0.0001726,2]
[359048210,1745674241054,-434.72,0.0001726,2]
[359048212,1745674241063,-283.554528,0.0001726,2]
[359048214,1745674241074,-283.554528,0.0001726,2]
[359048216,1745674241084,-920.46,0.0001726,2]
[359048217,1745674241094,-400.0,0.0001726,2]
[359048218,1745674241103,-338.36,0.0001726,2]
[359048219,1745674241113,-400.0,0.0001726,2]
[359048220,1745674241122,-196.16,0.0001726,2]
[359048221,1745674241132,-583.81,0.0001726,2]
[359048222,1745674241141,-1197.28,0.0001726,2]
[359048223,1745674241151,-400.0,0.0001726,2]
[359048224,1745674241160,-400.0,0.0001726,2]
[359048225,1745674241170,-211.02,0.0001726,2]
[359048226,1745674241180,-400.0,0.0001726,2]
[359048227,1745674241190,-1809.27,0.0001726,2]
[359048228,1745674241199,-400.0,0.0001726,2]
[359048229,1745674241209,-238.13666414,0.0001726,2]
[359048230,1745674241218,-1075.54,0.0001726,2]
[359048231,1745674241227,-400.0,0.0001726,2]
[359048232,1745674241237,-400.0,0.0001726,2]
[359048233,1745674241247,-3157.18,0.0001726,2]
[359048234,1745674241258,-1317.23,0.0001726,2]
[359048235,1745674241267,-679.31,0.0001726,2]
[359048236,1745674241277,-201.58,0.0001726,2]
[359048237,1745674241286,-688.96,0.0001726,2]
[359048238,1745674241297,-174.44,0.0001726,2]
[359048239,1745674241307,-400.0,0.0001726,2]
[359048241,1745674241316,-164.14,0.0001726,2]
[359048243,1745674241325,-400.0,0.0001726,2]
[359048245,1745674241335,-400.0,0.0001726,2]
[359048247,1745674241345,-204.2,0.0001726,2]
[359048249,1745674241355,-776.0,0.0001726,2]
[359048251,1745674241364,-1985.01,0.0001726,2]
[359048253,1745674241374,-400.0,0.0001726,2]
[359048255,1745674241383,-400.0,0.0001726,2]
[359048256,1745674241393,-287.52,0.0001726,2]
[359048258,1745674241403,-400.0,0.0001726,2]
[359048260,1745674241412,-249.059738,0.0001726,2]
[359048262,1745674241422,-400.0,0.0001726,2]
[359048264,1745674241432,-400.0,0.0001726,2]
[359048266,1745674241441,-400.0,0.0001726,2]
[359048268,1745674241451,-1182.7,0.0001726,2]
[359048270,1745674241460,-400.0,0.0001726,2]
[359048272,1745674241470,-853.150764,0.0001726,2]
[359048274,1745674241479,-400.0,0.0001726,2]
[359048276,1745674241490,-1368.46,0.0001726,2]
[359048278,1745674241500,-853.150764,0.0001726,2]
[359048280,1745674241510,-1073.9,0.0001726,2]
[359048282,1745674241521,-390.59,0.0001726,2]
[359048284,1745674241531,-400.0,0.0001726,2]
[359048286,1745674241540,-1307.71,0.0001726,2]
[359048288,1745674241550,-400.0,0.0001726,2]
[359048290,1745674241559,-415.3,0.0001726,2]
[359048292,1745674241569,-449.06652968,0.0001726,2]
[359048294,1745674241579,-813.68,0.0001726,2]
[359048296,1745674241589,-400.0,0.0001726,2]
[359048298,1745674241598,-400.0,0.0001726,2]
[359048300,1745674241608,-400.0,0.0001726,2]
[359048302,1745674241618,-400.0,0.0001726,2]
[359048304,1745674241629,-1227.33,0.0001726,2]
[359048306,1745674241639,-1251.93,0.0001726,2]
[359048308,1745674241648,-439.63,0.0001726,2]
[359048310,1745674241658,-400.0,0.0001726,2]
[359048312,1745674241668,-425.25,0.0001726,2]
[359048314,1745674241678,-400.0,0.0001726,2]
[359048316,1745674241687,-977.84,0.0001726,2]
[359048318,1745674241697,-951.96,0.0001726,2]
[359048320,1745674241706,-1289.96,0.0001726,2]
[359048322,1745674241715,-151.0,0.000173,2]
[359048324,1745674241725,-3125.0691783,0.000175,4]
[359048326,1745674241735,-400.0,0.00017534,2]
[359048328,1745674241744,-400.0,0.00017534,2]
[359048329,1745674241754,-400.0,0.00017534,2]
[359048331,1745674241764,-233.4,0.00017534,2]
[359048333,1745674241773,-151.0,0.00017534,2]
[359048335,1745674241783,-1067.65,0.00017534,2]
[359048337,1745674241793,-436.63,0.00017534,2]
[359048339,1745674241804,-151.0,0.00017534,2]
[359048341,1745674241814,-434.72,0.00017534,2]
[359048343,1745674241824,-151.0,0.00017534,2]
[359048345,1745674241835,-920.46,0.00017534,2]
[359048347,1745674241846,-400.0,0.00017534,2]
[359048349,1745674241855,-400.0,0.00017534,2]
[359048351,1745674241866,-583.81,0.00017534,2]
[359048353,1745674241877,-151.0,0.00017534,2]
[359048355,1745674241887,-1197.28,0.00017534,2]
[359048357,1745674241897,-400.0,0.00017534,2]
[359048359,1745674241907,-151.0,0.00017534,2]
[359048361,1745674241916,-400.0,0.00017534,2]
[359048363,1745674241925,-400.0,0.00017534,2]
[359048365,1745674241936,-1809.27,0.00017534,2]
[359048367,1745674241945,-400.0,0.00017534,2]
[359048369,1745674241955,-1075.54,0.00017534,2]
[359048371,1745674241965,-400.0,0.00017534,2]
[359048373,1745674241974,-400.0,0.00017534,2]
[359048375,1745674241983,-3157.18,0.00017534,2]
[359048377,1745674241993,-679.31,0.00017534,2]
[359048379,1745674242003,-1317.23,0.00017534,2]
[359048381,1745674242012,-688.96,0.00017534,2]
[359048383,1745674242022,-400.0,0.00017534,2]
[359048385,1745674242032,-400.0,0.00017534,2]
[359048387,1745674242042,-168.988934,0.00017534,2]
[359048389,1745674242051,-400.0,0.00017534,2]
[359048391,1745674242061,-168.988934,0.00017534,2]
[359048393,1745674242070,-776.0,0.00017534,2]
[359048395,1745674242080,-1985.01,0.00017534,2]
[359048397,1745674242089,-400.0,0.00017534,2]
[359048399,1745674242099,-400.0,0.00017534,2]
[359048401,1745674242109,-400.0,0.00017534,2]
[359048403,1745674242119,-400.0,0.00017534,2]
[359048405,1745674242130,-400.0,0.00017534,2]
[359048407,1745674242139,-400.0,0.00017534,2]
[359048409,1745674242148,-1182.7,0.00017534,2]
[359048411,1745674242157,-189.96,0.00017534,2]
[359048413,1745674242167,-400.0,0.00017534,2]
[359048415,1745674242176,-853.150764,0.00017534,2]
[359048416,1745674242186,-1368.46,0.00017534,2]
[359048418,1745674242195,-853.150764,0.00017534,2]
[359048420,1745674242204,-1073.9,0.00017534,2]
[359048422,1745674242214,-400.0,0.00017534,2]
[359048424,1745674242223,-1307.71,0.00017534,2]
[359048426,1745674242232,-400.0,0.00017534,2]
[359048428,1745674242242,-2317.491421,0.00017534,2]
[359048430,1745674242252,-813.68,0.00017534,2]
[359048432,1745674242261,-2317.491421,0.00017534,2]
[359048434,1745674242271,-400.0,0.00017534,2]
[359048436,1745674242280,-400.0,0.00017534,2]
[359048438,1745674242290,-400.0,0.00017534,2]
[359048440,1745674242299,-400.0,0.00017534,2]
[359048442,1745674242309,-1227.33,0.00017534,2]
[359048444,1745674242319,-439.63,0.00017534,2]
[359048446,1745674242329,-1251.93,0.00017534,2]
[359048448,1745674242339,-400.0,0.00017534,2]
[359048450,1745674242348,-400.0,0.00017534,2]
[359048452,1745674242358,-977.84,0.00017534,2]
[359048454,1745674242367,-951.96,0.00017534,2]
[359048456,1745674242378,-1289.96,0.00017534,2]
[359048458,1745674242388,-2845.09905718,0.00017693,2]
[359048460,1745674242398,-500.0,0.00017743,2]
[359048463,1745674242408,-500.0,0.00017743,2]
[359048465,1745674242417,-283.554528,0.00017743,2]
[359048468,1745674242427,-283.554528,0.00017743,2]
[359048470,1745674242437,-8229.09570861,0.00017807,3]
[359048472,1745674242447,-16177.02909673,0.00017808,2]
[359048475,1745674242466,-206957.3319125,0.00017808,2]
[359048478,1745674242476,-151.0,0.00017808,2]
[359048481,1745674242486,-466.12,0.00017808,2]
[359048484,1745674242495,-400.0,0.00017808,2]
[359048486,1745674242504,-400.0,0.00017808,2]
[359048488,1745674242514,-151.0,0.00017808,2]
[359048490,1745674242524,-151.0,0.00017808,2]
[359048492,1745674242533,-1067.65,0.00017808,2]
[359048493,1745674242543,-436.63,0.00017808,2]
[359048496,1745674242553,-434.72,0.00017808,2]
[359048499,1745674242563,-920.46,0.00017808,2]
[359048503,1745674242573,-400.0,0.00017808,2]
[359048505,1745674242583,-400.0,0.00017808,2]
[359048507,1745674242593,-583.81,0.00017808,2]
[359048509,1745674242603,-1197.28,0.00017808,2]
[359048511,1745674242613,-400.0,0.00017808,2]
[359048512,1745674242622,-151.0,0.00017808,2]
[359048515,1745674242632,-400.0,0.00017808,2]
[359048517,1745674242641,-400.0,0.00017808,2]
[359048519,1745674242652,-1809.27,0.00017808,2]
[359048521,1745674242662,-400.0,0.00017808,2]
[359048523,1745674242671,-1075.54,0.00017808,2]
[359048525,1745674242681,-400.0,0.00017808,2]
[359048527,1745674242690,-400.0,0.00017808,2]
[359048528,1745674242699,-3157.18,0.00017808,2]
[359048530,1745674242709,-679.31,0.00017808,2]
[359048532,1745674242719,-1317.23,0.00017808,2]
[359048534,1745674242728,-688.96,0.00017808,2]
[359048536,1745674242738,-239.62,0.00017808,2]
[359048539,1745674242749,-400.0,0.00017808,2]
[359048540,1745674242759,-400.0,0.00017808,2]
[359048542,1745674242769,-776.0,0.00017808,2]
[359048544,1745674242779,-1985.01,0.00017808,2]
[359048546,1745674242789,-400.0,0.00017808,2]
[359048548,1745674242801,-400.0,0.00017808,2]
[359048550,1745674242811,-382.33059115,0.00017808,2]
[359048552,1745674242821,-400.0,0.00017808,2]
[359048554,1745674242830,-400.0,0.00017808,2]
[359048556,1745674242840,-1182.7,0.00017808,2]
[359048558,1745674242850,-400.0,0.00017808,2]
[359048560,1745674242860,-1368.46,0.00017808,2]
[359048562,1745674242869,-1073.9,0.00017808,2]
[359048564,1745674242880,-400.0,0.00017808,2]
[359048580,1745674243017,-400.0,0.00017808,2]
[359048582,1745674243026,-1307.71,0.00017808,2]
[359048583,1745674243036,-2317.491421,0.00017808,2]
[359048585,1745674243045,-813.68,0.00017808,2]
[359048588,1745674243055,-2317.491421,0.00017808,2]
[359048589,1745674243065,-400.0,0.00017808,2]
[359048591,1745674243074,-400.0,0.00017808,2]
[359048595,1745674243085,-367.16123975,0.00017808,2]
[359048598,1745674243097,-32.83876025,0.00017808,2]
[359048600,1745674243107,-400.0,0.00017808,2]
[359048602,1745674243116,-1227.33,0.00017808,2]
[359048604,1745674243126,-1251.93,0.00017808,2]
[359048607,1745674243135,-439.63,0.00017808,2]
[359048609,1745674243144,-400.0,0.00017808,2]
[359048610,1745674243154,-400.0,0.00017808,2]
[359048612,1745674243163,-977.84,0.00017808,2]
[359048614,1745674243173,-951.96,0.00017808,2]
[359048616,1745674243183,-1289.96,0.00017808,2]
[359048618,1745674243192,-1102.37709137,0.00017809,2]
[359048620,1745674243202,-355.18490943,0.0001787,2]
[359048622,1745674243211,-233.581022,0.000179,2]
[359048624,1745674243221,-151.0,0.000179,2]
[359048626,1745674243230,-151.0,0.000179,2]
[359048628,1745674243241,-168.988934,0.000179,2]
[359048630,1745674243251,-168.988934,0.000179,2]
[359048632,1745674243261,-151.0,0.00018,2]
[359048634,1745674243270,-307.16,0.00018,2]
[359048636,1745674243280,-307.16,0.00018,2]
[359048638,1745674243289,-307.16,0.00018,2]
[359048640,1745674243299,-151.0,0.00018,2]
[359048642,1745674243308,-1286.14503,0.00018,2]
[359048644,1745674243318,-500.0,0.00018,2]
[359048646,1745674243328,-390.53328444,0.00018,2]
[359048648,1745674243338,-942.39758497,0.00018047,2]
[359048650,1745674243349,-151.0,0.00018082,2]
[359048652,1745674243359,-400.0,0.00018082,2]
[359048654,1745674243368,-400.0,0.00018082,2]
[359048656,1745674243378,-1067.65,0.00018082,2]
[359048658,1745674243389,-436.63,0.00018082,2]
[359048660,1745674243398,-434.72,0.00018082,2]
[359048662,1745674243408,-283.554528,0.00018082,2]
[359048664,1745674243419,-283.554528,0.00018082,2]
[359048666,1745674243428,-920.46,0.00018082,2]
[359048668,1745674243438,-400.0,0.00018082,2]
[359048670,1745674243447,-400.0,0.00018082,2]
[359048672,1745674243457,-583.81,0.00018082,2]
[359048674,1745674243467,-1197.28,0.00018082,2]
[359048676,1745674243476,-400.0,0.00018082,2]
[359048678,1745674243486,-400.0,0.00018082,2]
[359048680,1745674243495,-400.0,0.00018082,2]
[359048682,1745674243505,-1809.27,0.00018082,2]
[359048684,1745674243516,-400.0,0.00018082,2]
[359048686,1745674243526,-1075.54,0.00018082,2]
[359048688,1745674243536,-400.0,0.00018082,2]
[359048690,1745674243546,-400.0,0.00018082,2]
[359048692,1745674243555,-3157.18,0.00018082,2]
[359048694,1745674243565,-679.31,0.00018082,2]
[359048696,1745674243575,-1317.23,0.00018082,2]
[359048698,1745674243584,-688.96,0.00018082,2]
[359048700,1745674243594,-232.26,0.00018082,2]
[359048702,1745674243604,-400.0,0.00018082,2]
[359048704,1745674243614,-776.0,0.00018082,2]
[359048706,1745674243624,-1985.01,0.00018082,2]
[359048708,1745674243635,-254.11,0.00018082,2]
[359048710,1745674243644,-400.0,0.00018082,2]
[359048713,1745674243654,-400.0,0.00018082,2]
[359048715,1745674243663,-400.0,0.00018082,2]
[359048717,1745674243673,-1182.7,0.00018082,2]
[359048718,1745674243683,-400.0,0.00018082,2]
[359048720,1745674243692,-853.150764,0.00018082,2]
[359048722,1745674243701,-1368.46,0.00018082,2]
[359048724,1745674243711,-853.150764,0.00018082,2]
[359048725,1745674243721,-1073.9,0.00018082,2]
[359048726,1745674243731,-400.0,0.00018082,2]
[359048727,1745674243740,-400.0,0.00018082,2]
[359048728,1745674243750,-1307.71,0.00018082,2]
[359048729,1745674243760,-813.68,0.00018082,2]
[359048730,1745674243770,-268.05,0.00018082,2]
[359048731,1745674243779,-400.0,0.00018082,2]
[359048732,1745674243788,-400.0,0.00018082,2]
[359048733,1745674243798,-400.0,0.00018082,2]
[359048735,1745674243811,-1227.33,0.00018082,2]
[359048737,1745674243821,-439.63,0.00018082,2]
[359048739,1745674243831,-1251.93,0.00018082,2]
[359048742,1745674243842,-400.0,0.00018082,2]
[359048744,1745674243852,-400.0,0.00018082,2]
[359048746,1745674243861,-977.84,0.00018082,2]
[359048748,1745674243872,-951.96,0.00018082,2]
[359048750,1745674243882,-1289.96,0.00018082,2]
[359048752,1745674243891,-500.0,0.0001814,2]
[359048754,1745674243901,-818.4322899,0.00018311,2]
[359048756,1745674243910,-151.0,0.00018356,2]
[359048758,1745674243920,-400.0,0.00018356,2]
[359048760,1745674243929,-400.0,0.00018356,2]
[359048762,1745674243939,-151.0,0.00018356,2]
[359048764,1745674243948,-151.0,0.00018356,2]
[359048766,1745674243957,-151.0,0.00018356,2]
[359048768,1745674243967,-1067.65,0.00018356,2]
[359048770,1745674243978,-436.63,0.00018356,2]
[359048772,1745674243987,-434.72,0.00018356,2]
[359048774,1745674243996,-151.0,0.00018356,2]
[359048776,1745674244005,-920.46,0.00018356,2]
[359048778,1745674244015,-400.0,0.00018356,2]
[359048780,1745674244024,-262.74,0.00018356,2]
[359048782,1745674244033,-583.81,0.00018356,2]
[359048784,1745674244043,-1197.28,0.00018356,2]
[359048786,1745674244052,-400.0,0.00018356,2]
[359048788,1745674244062,-151.0,0.00018356,2]
[359048790,1745674244071,-400.0,0.00018356,2]
[359048792,1745674244081,-400.0,0.00018356,2]
[359048794,1745674244090,-1809.27,0.00018356,2]
[359048796,1745674244100,-400.0,0.00018356,2]
[359048798,1745674244110,-1075.54,0.00018356,2]
[359048800,1745674244119,-400.0,0.00018356,2]
[359048802,1745674244129,-400.0,0.00018356,2]
[359048804,1745674244138,-3157.18,0.00018356,2]
[359048806,1745674244148,-679.31,0.00018356,2]
[359048808,1745674244157,-1317.23,0.00018356,2]
[359048810,1745674244167,-688.96,0.00018356,2]
[359048812,1745674244177,-168.988934,0.00018356,2]
[359048814,1745674244186,-400.0,0.00018356,2]
[359048816,1745674244196,-168.988934,0.00018356,2]
[359048818,1745674244205,-776.0,0.00018356,2]
[359048820,1745674244215,-1985.01,0.00018356,2]
[359048822,1745674244224,-400.0,0.00018356,2]
[359048824,1745674244235,-400.0,0.00018356,2]
[359048826,1745674244245,-400.0,0.00018356,2]
[359048828,1745674244256,-1182.7,0.00018356,2]
[359048830,1745674244265,-400.0,0.00018356,2]
[359048832,1745674244274,-853.150764,0.00018356,2]
[359048834,1745674244284,-1368.46,0.00018356,2]
[359048836,1745674244294,-853.150764,0.00018356,2]
[359048838,1745674244304,-1073.9,0.00018356,2]
[359048840,1745674244313,-400.0,0.00018356,2]
[359048842,1745674244323,-400.0,0.00018356,2]
[359048844,1745674244333,-1307.71,0.00018356,2]
[359048846,1745674244342,-2317.491421,0.00018356,2]
[359048848,1745674244351,-766.2894077,0.00018356,2]
[359048850,1745674244366,-47.3905923,0.00018356,2]
[359048852,1745674244376,-2317.491421,0.00018356,2]
[359048854,1745674244386,-400.0,0.00018356,2]
[359048856,1745674244395,-400.0,0.00018356,2]
[359048858,1745674244406,-276.86,0.00018356,2]
[359048860,1745674244415,-1227.33,0.00018356,2]
[359048862,1745674244425,-439.63,0.00018356,2]
[359048864,1745674244434,-1251.93,0.00018356,2]
[359048866,1745674244444,-400.0,0.00018356,2]
[359048867,1745674244454,-165.13402407,0.00018356,2]
[359048868,1745674244464,-977.84,0.00018356,2]
[359048869,1745674244474,-951.96,0.00018356,2]
[359048871,1745674244484,-1289.96,0.00018356,2]
[359048873,1745674244494,-300.92831776,0.00018431,2]
[359048875,1745674244504,-587.0,0.00018448,2]
[359048877,1745674244513,-2845.09905718,0.00018486,2]
[359048879,1745674244523,-1000.0,0.000185,2]
[359048881,1745674244533,-256.3434088,0.00018621,2]
[359048883,1745674244543,-400.0,0.0001863,2]
[359048885,1745674244552,-400.0,0.0001863,2]
[359048887,1745674244562,-1067.65,0.0001863,2]
[359048889,1745674244571,-436.63,0.0001863,2]
[359048891,1745674244581,-434.72,0.0001863,2]
[359048893,1745674244592,-283.554528,0.0001863,2]
[359048895,1745674244601,-283.554528,0.0001863,2]
[359048897,1745674244611,-920.46,0.0001863,2]
[359048899,1745674244621,-400.0,0.0001863,2]
[359048901,1745674244630,-583.81,0.0001863,2]
[359048903,1745674244640,-1197.28,0.0001863,2]
[359048905,1745674244650,-400.0,0.0001863,2]
[359048907,1745674244659,-151.0,0.0001863,2]
[359048909,1745674244669,-400.0,0.0001863,2]
[359048910,1745674244679,-400.0,0.0001863,2]
[359048911,1745674244689,-1809.27,0.0001863,2]
[359048912,1745674244699,-400.0,0.0001863,2]
[359048913,1745674244708,-1075.54,0.0001863,2]
[359048914,1745674244718,-400.0,0.0001863,2]